[Event "Sverigemastarklassen 2025"]
[Site "Uppsala, Sweden"]
[Date "2025.07.01"]
[Round "4.3"]
[White "Blomqvist, Erik"]
[Black "Pantzar, Milton"]
[Result "1/2-1/2"]
[TimeControl "90 min for 40 move + 30 min with an increment of 30 sec starting move 1"]
[WhiteTitle "GM"]
[BlackTitle "IM"]
[WhiteFideId "1709437"]
[BlackFideId "1721003"]
[WhiteElo "2448"]
[BlackElo "2450"]

1. e4 {[%clk 01:30:24]} {[%emt 00:00:35]} e5 {[%clk 01:30:51]} {[%emt
00:00:10]} 2. Nf3 {[%clk 01:30:48]} {[%emt 00:00:05]} Nc6 {[%clk 01:31:15]}
{[%emt 00:00:07]} 3. g3 {[%clk 01:31:00]} {[%emt 00:00:18]} Nf6 {[%clk
01:25:15]} {[%emt 00:06:30]} 4. d3 {[%clk 01:30:19]} {[%emt 00:01:10]} Bc5
{[%clk 01:21:50]} {[%emt 00:03:55]} 5. Bg2 {[%clk 01:30:41]} {[%emt 00:00:08]}
O-O {[%clk 01:19:25]} {[%emt 00:02:55]} 6. O-O {[%clk 01:28:14]} {[%emt
00:02:58]} d6 {[%clk 01:17:00]} {[%emt 00:02:55]} 7. Nc3 {[%clk 01:28:06]}
{[%emt 00:00:37]} a5 {[%clk 01:14:54]} {[%emt 00:02:36]} 8. h3 {[%clk
01:28:08]} {[%emt 00:00:27]} a4 {[%clk 01:07:51]} {[%emt 00:07:35]} 9. Kh2
{[%clk 01:27:27]} {[%emt 00:01:10]} a3 {[%clk 01:01:52]} {[%emt 00:06:30]} 10.
b3 {[%clk 01:27:42]} {[%emt 00:00:15]} Nd4 {[%clk 00:58:02]} {[%emt 00:04:20]}
11. Rb1 {[%clk 01:20:11]} {[%emt 00:08:01]} c6 {[%clk 00:44:25]} {[%emt
00:14:07]} 12. Nxd4 {[%clk 01:16:12]} {[%emt 00:04:28]} exd4 {[%clk 00:38:31]}
{[%emt 00:06:24]} 13. Ne2 {[%clk 01:16:30]} {[%emt 00:00:11]} d5 {[%clk
00:37:47]} {[%emt 00:01:16]} 14. e5 {[%clk 01:12:20]} {[%emt 00:04:40]} Ne8
{[%clk 00:38:06]} {[%emt 00:00:11]} 15. b4 {[%clk 01:09:23]} {[%emt 00:03:26]}
Bb6 {[%clk 00:36:54]} {[%emt 00:01:42]} 16. Rb3 {[%clk 01:09:22]} {[%emt
00:00:31]} Qe7 {[%clk 00:34:53]} {[%emt 00:02:31]} 17. Rxa3 {[%clk 01:00:08]}
{[%emt 00:09:45]} Rxa3 {[%clk 00:34:06]} {[%emt 00:01:17]} 18. Bxa3 {[%clk
01:00:35]} {[%emt 00:00:02]} Qxe5 {[%clk 00:34:16]} {[%emt 00:00:21]} 19. Bc1
{[%clk 00:55:25]} {[%emt 00:05:40]} Nc7 {[%clk 00:20:36]} {[%emt 00:14:10]} 20.
a4 {[%clk 00:55:01]} {[%emt 00:00:54]} Re8 {[%clk 00:18:49]} {[%emt 00:02:17]}
21. Ng1 {[%clk 00:49:12]} {[%emt 00:06:18]} Ne6 {[%clk 00:17:09]} {[%emt
00:02:10]} 22. Bd2 {[%clk 00:47:29]} {[%emt 00:02:13]} Qf6 {[%clk 00:14:06]}
{[%emt 00:03:34]} 23. Re1 {[%clk 00:41:09]} {[%emt 00:06:49]} Bd7 {[%clk
00:12:03]} {[%emt 00:02:34]} 24. f4 {[%clk 00:32:35]} {[%emt 00:09:04]} g6
{[%clk 00:10:14]} {[%emt 00:02:19]} 25. Nf3 {[%clk 00:32:41]} {[%emt 00:00:23]}
Ng7 {[%clk 00:08:09]} {[%emt 00:02:36]} 26. Ne5 {[%clk 00:31:13]} {[%emt
00:01:58]} Qd8 {[%clk 00:05:07]} {[%emt 00:03:32]} 27. h4 {[%clk 00:24:11]}
{[%emt 00:07:32]} Bc8 {[%clk 00:04:43]} {[%emt 00:00:53]} 28. a5 {[%clk
00:20:44]} {[%emt 00:03:58]} Bc7 {[%clk 00:04:33]} {[%emt 00:00:40]} 29. a6
{[%clk 00:21:05]} {[%emt 00:00:08]} f6 {[%clk 00:02:48]} {[%emt 00:02:15]} 30.
Nf3 {[%clk 00:09:55]} {[%emt 00:11:41]} Bb6 {[%clk 00:02:55]} {[%emt 00:00:23]}
31. axb7 {[%clk 00:09:23]} {[%emt 00:01:01]} Bxb7 {[%clk 00:03:19]} {[%emt
00:00:06]} 32. Qa1 {[%clk 00:08:45]} {[%emt 00:01:08]} Rxe1 {[%clk 00:02:38]}
{[%emt 00:01:11]} 33. Qxe1 {[%clk 00:06:21]} {[%emt 00:02:55]} Bc8 {[%clk
00:02:29]} {[%emt 00:00:40]} 34. Bc1 {[%clk 00:05:20]} {[%emt 00:01:31]} Bg4
{[%clk 00:01:44]} {[%emt 00:01:14]} 35. Bb2 {[%clk 00:03:24]} {[%emt 00:02:26]}
Bxf3 {[%clk 00:02:02]} {[%emt 00:00:12]} 36. Bxf3 {[%clk 00:03:53]} {[%emt
00:00:01]} Qd6 {[%clk 00:02:13]} {[%emt 00:00:18]} 37. Qa1 {[%clk 00:03:16]}
{[%emt 00:01:08]} Nf5 {[%clk 00:01:25]} {[%emt 00:01:18]} 38. b5 {[%clk
00:02:30]} {[%emt 00:01:15]} Kg7 {[%clk 00:00:58]} {[%emt 00:00:58]} 39. Qa6
{[%clk 00:01:18]} {[%emt 00:01:41]} cxb5 {[%clk 00:00:33]} {[%emt 00:00:56]} 40.
Qxb5 {[%clk 00:00:58]} {[%emt 00:00:49]} Ne3 {[%clk 00:00:35]} {[%emt
00:00:27]} 41. Qa6 {[%clk 00:18:30]} {[%emt 00:12:59]} Qc7 {[%clk 00:26:21]}
{[%emt 00:04:44]} 42. Qa4 {[%clk 00:11:37]} {[%emt 00:07:23]} Qxc2+ {[%clk
00:15:55]} {[%emt 00:10:56]} 43. Qxc2 {[%clk 00:12:02]} {[%emt 00:00:05]} Nxc2
{[%clk 00:16:17]} {[%emt 00:00:09]} 44. Bxd5 {[%clk 00:12:30]} {[%emt
00:00:01]} Bc5 {[%clk 00:16:20]} {[%emt 00:00:27]} 45. Bb3 {[%clk 00:12:13]}
{[%emt 00:00:47]} Ba3 {[%clk 00:16:25]} {[%emt 00:00:26]} 46. Bxc2 {[%clk
00:12:26]} {[%emt 00:00:17]} 1/2-1/2

[Event "Sverigemastarklassen 2025"]
[Site "Uppsala, Sweden"]
[Date "2025.07.01"]
[Round "4.4"]
[White "Hillarp-Persson, Tiger"]
[Black "Falkevall, Axel"]
[Result "1-0"]
[TimeControl "90 min for 40 move + 30 min with an increment of 30 sec starting move 1"]
[WhiteTitle "GM"]
[BlackTitle "FM"]
[WhiteFideId "1700812"]
[BlackFideId "1735560"]
[WhiteElo "2445"]
[BlackElo "2372"]

1. d4 {[%clk 01:30:55]} {[%emt 00:00:04]} Nf6 {[%clk 01:30:52]} {[%emt
00:00:07]} 2. c4 {[%clk 01:31:16]} {[%emt 00:00:10]} e6 {[%clk 01:31:15]}
{[%emt 00:00:06]} 3. Nc3 {[%clk 01:31:29]} {[%emt 00:00:17]} Bb4 {[%clk
01:31:40]} {[%emt 00:00:06]} 4. e3 {[%clk 01:31:45]} {[%emt 00:00:14]} O-O
{[%clk 01:31:33]} {[%emt 00:00:36]} 5. Bd3 {[%clk 01:32:04]} {[%emt 00:00:11]}
d5 {[%clk 01:31:46]} {[%emt 00:00:17]} 6. a3 {[%clk 01:32:28]} {[%emt
00:00:07]} Bxc3+ {[%clk 01:31:30]} {[%emt 00:00:46]} 7. bxc3 {[%clk 01:32:51]}
{[%emt 00:00:07]} dxc4 {[%clk 01:29:18]} {[%emt 00:02:42]} 8. Bxc4 {[%clk
01:33:12]} {[%emt 00:00:08]} c5 {[%clk 01:29:10]} {[%emt 00:00:38]} 9. Ne2
{[%clk 01:33:35]} {[%emt 00:00:07]} Qc7 {[%clk 01:28:22]} {[%emt 00:01:19]} 10.
Bd3 {[%clk 01:33:55]} {[%emt 00:00:10]} e5 {[%clk 01:23:20]} {[%emt 00:05:31]}
11. e4 {[%clk 01:34:18]} {[%emt 00:00:08]} cxd4 {[%clk 01:11:46]} {[%emt
00:12:04]} 12. cxd4 {[%clk 01:34:39]} {[%emt 00:00:08]} exd4 {[%clk 01:11:18]}
{[%emt 00:00:59]} 13. O-O {[%clk 01:34:50]} {[%emt 00:00:18]} Nc6 {[%clk
01:11:06]} {[%emt 00:00:43]} 14. f4 {[%clk 01:30:39]} {[%emt 00:04:41]} Nd7
{[%clk 01:01:03]} {[%emt 00:10:33]} 15. Qc2 {[%clk 01:15:29]} {[%emt 00:15:39]}
b6 {[%clk 00:57:56]} {[%emt 00:03:38]} 16. e5 {[%clk 01:11:16]} {[%emt
00:04:43]} h6 {[%clk 00:47:05]} {[%emt 00:11:21]} 17. Nxd4 {[%clk 01:11:05]}
{[%emt 00:00:41]} Nc5 {[%clk 00:46:59]} {[%emt 00:00:36]} 18. Nb5 {[%clk
00:40:52]} {[%emt 00:30:42]} Qe7 {[%clk 00:43:51]} {[%emt 00:03:37]} 19. Nd6
{[%clk 00:29:23]} {[%emt 00:12:00]} f6 {[%clk 00:39:02]} {[%emt 00:05:19]} 20.
Be3 {[%clk 00:21:21]} {[%emt 00:08:32]} fxe5 {[%clk 00:26:09]} {[%emt
00:13:24]} 21. Bxc5 {[%clk 00:20:58]} {[%emt 00:00:52]} bxc5 {[%clk 00:26:35]}
{[%emt 00:00:05]} 22. Qxc5 {[%clk 00:20:02]} {[%emt 00:01:26]} Bd7 {[%clk
00:21:22]} {[%emt 00:05:43]} 23. Qd5+ {[%clk 00:16:33]} {[%emt 00:03:59]} Qe6
{[%clk 00:21:32]} {[%emt 00:00:19]} 24. Qe4 {[%clk 00:16:42]} {[%emt 00:00:20]}
1-0

[Event "Sverigemastarklassen 2025"]
[Site "Uppsala, Sweden"]
[Date "2025.07.01"]
[Round "4.5"]
[White "Seo, Jung Min"]
[Black "Storme, Isak"]
[Result "1-0"]
[TimeControl "90 min for 40 move + 30 min with an increment of 30 sec starting move 1"]
[WhiteTitle "IM"]
[BlackTitle "IM"]
[WhiteFideId "1734687"]
[BlackFideId "1728113"]
[WhiteElo "2472"]
[BlackElo "2466"]

1. e4 {[%clk 01:30:57]} {[%emt 00:00:02]} c5 {[%clk 01:30:42]} {[%emt
00:00:18]} 2. Nf3 {[%clk 01:31:24]} {[%emt 00:00:04]} Nc6 {[%clk 01:31:06]}
{[%emt 00:00:06]} 3. d4 {[%clk 01:29:44]} {[%emt 00:02:10]} cxd4 {[%clk
01:31:29]} {[%emt 00:00:07]} 4. Nxd4 {[%clk 01:30:11]} {[%emt 00:00:03]} e5
{[%clk 01:31:45]} {[%emt 00:00:13]} 5. Nb5 {[%clk 01:30:13]} {[%emt 00:00:27]}
d6 {[%clk 01:32:03]} {[%emt 00:00:13]} 6. N1a3 {[%clk 01:29:07]} {[%emt
00:01:36]} a6 {[%clk 01:31:45]} {[%emt 00:00:47]} 7. Nc3 {[%clk 01:29:18]}
{[%emt 00:00:20]} Be7 {[%clk 01:31:08]} {[%emt 00:01:07]} 8. Nc4 {[%clk
01:27:51]} {[%emt 00:01:58]} b5 {[%clk 01:30:29]} {[%emt 00:01:08]} 9. Ne3
{[%clk 01:28:16]} {[%emt 00:00:04]} Nf6 {[%clk 01:30:50]} {[%emt 00:00:09]} 10.
Bd3 {[%clk 01:26:31]} {[%emt 00:02:17]} O-O {[%clk 01:29:59]} {[%emt 00:01:20]}
11. O-O {[%clk 01:25:01]} {[%emt 00:02:00]} Nb4 {[%clk 01:24:16]} {[%emt
00:06:12]} 12. Be2 {[%clk 01:22:37]} {[%emt 00:02:55]} Be6 {[%clk 01:19:59]}
{[%emt 00:04:46]} 13. a3 {[%clk 01:07:34]} {[%emt 00:15:34]} Nc6 {[%clk
01:20:24]} {[%emt 00:00:05]} 14. Ned5 {[%clk 01:07:10]} {[%emt 00:00:54]} Rb8
{[%clk 01:15:13]} {[%emt 00:05:41]} 15. Be3 {[%clk 00:58:06]} {[%emt 00:09:34]}
b4 {[%clk 01:01:04]} {[%emt 00:14:40]} 16. Nxe7+ {[%clk 00:45:19]} {[%emt
00:13:17]} Nxe7 {[%clk 01:01:03]} {[%emt 00:00:30]} 17. axb4 {[%clk 00:45:39]}
{[%emt 00:00:11]} Rxb4 {[%clk 01:00:46]} {[%emt 00:00:46]} 18. Rxa6 {[%clk
00:43:43]} {[%emt 00:02:26]} Rxb2 {[%clk 00:58:27]} {[%emt 00:02:48]} 19. Rxd6
{[%clk 00:37:39]} {[%emt 00:06:35]} Qc7 {[%clk 00:54:57]} {[%emt 00:03:59]} 20.
Na4 {[%clk 00:33:01]} {[%emt 00:05:09]} Rb4 {[%clk 00:39:29]} {[%emt 00:15:58]}
21. Nc5 {[%clk 00:30:35]} {[%emt 00:02:56]} Bc4 {[%clk 00:35:59]} {[%emt
00:04:00]} 22. Bxc4 {[%clk 00:25:10]} {[%emt 00:05:56]} Rxc4 {[%clk 00:36:14]}
{[%emt 00:00:15]} 23. Rxf6 {[%clk 00:25:16]} {[%emt 00:00:23]} gxf6 {[%clk
00:35:10]} {[%emt 00:01:35]} 24. Nd7 {[%clk 00:25:18]} {[%emt 00:00:27]} Rc8
{[%clk 00:25:20]} {[%emt 00:10:19]} 25. Nxf6+ {[%clk 00:08:49]} {[%emt
00:17:00]} Kg7 {[%clk 00:25:44]} {[%emt 00:00:05]} 26. Qg4+ {[%clk 00:08:29]}
{[%emt 00:00:51]} Ng6 {[%clk 00:26:00]} {[%emt 00:00:14]} 27. Nd5 {[%clk
00:07:04]} {[%emt 00:01:55]} Qd8 {[%clk 00:15:49]} {[%emt 00:10:41]} 28. Nb6
{[%clk 00:04:01]} {[%emt 00:03:33]} Rxc2 {[%clk 00:16:15]} {[%emt 00:00:05]} 29.
Nxc8 {[%clk 00:04:26]} {[%emt 00:00:04]} Qxc8 {[%clk 00:16:34]} {[%emt
00:00:11]} 30. Qg5 {[%clk 00:03:12]} {[%emt 00:01:42]} Qe6 {[%clk 00:16:27]}
{[%emt 00:00:38]} 31. h4 {[%clk 00:03:04]} {[%emt 00:00:39]} f6 {[%clk
00:14:51]} {[%emt 00:02:05]} 32. Qh6+ {[%clk 00:03:02]} {[%emt 00:00:32]} Kg8
{[%clk 00:15:11]} {[%emt 00:00:10]} 33. Ra1 {[%clk 00:02:15]} {[%emt 00:01:18]}
Ne7 {[%clk 00:13:58]} {[%emt 00:01:42]} 34. Ra8+ {[%clk 00:02:21]} {[%emt
00:00:24]} Nc8 {[%clk 00:12:45]} {[%emt 00:01:44]} 35. Bg5 {[%clk 00:01:08]}
{[%emt 00:01:44]} Rc6 {[%clk 00:08:13]} {[%emt 00:05:01]} 36. Bxf6 {[%clk
00:01:24]} {[%emt 00:00:14]} Qg4 {[%clk 00:07:13]} {[%emt 00:01:30]} 37. Qg5+
{[%clk 00:01:05]} {[%emt 00:00:48]} Qxg5 {[%clk 00:07:38]} {[%emt 00:00:06]} 38.
hxg5 {[%clk 00:01:32]} {[%emt 00:00:03]} Kf7 {[%clk 00:07:55]} {[%emt
00:00:14]} 39. Bxe5 {[%clk 00:01:54]} {[%emt 00:00:08]} Kg6 {[%clk 00:08:11]}
{[%emt 00:00:12]} 40. Bf4 {[%clk 00:01:57]} {[%emt 00:00:28]} 1-0

[Event "Sverigemastarklassen 2025"]
[Site "Uppsala, Sweden"]
[Date "2025.06.30"]
[Round "3.5"]
[White "Hillarp-Persson, Tiger"]
[Black "Seo, Jung Min"]
[Result "0-1"]
[TimeControl "90 min for 40 move + 30 min with an increment of 30 sec starting move 1"]
[WhiteTitle "GM"]
[BlackTitle "IM"]
[WhiteFideId "1700812"]
[BlackFideId "1734687"]
[WhiteElo "2445"]
[BlackElo "2472"]

1. c4 {[%clk 01:30:54]} {[%emt 00:00:05]} e5 {[%clk 01:30:41]} {[%emt
00:00:19]} 2. Nc3 {[%clk 01:29:35]} {[%emt 00:01:49]} Nf6 {[%clk 01:24:53]}
{[%emt 00:00:11]} 3. e3 {[%clk 01:29:54]} Nc6 {[%clk 01:24:53]} 4. a3 {[%clk
01:29:54]} d5 {[%clk 01:24:53]} 5. cxd5 {[%clk 01:29:54]} Nxd5 {[%clk
01:24:53]} 6. Qc2 {[%clk 01:29:54]} Nxc3 {[%clk 01:24:53]} 7. bxc3 {[%clk
01:29:54]} Bd6 {[%clk 01:24:53]} 8. d4 {[%clk 01:14:50]} {[%emt 00:43:41]} Qe7
{[%clk 01:04:33]} 9. Bb2 {[%clk 01:08:34]} {[%emt 00:10:16]} O-O {[%clk
01:03:07]} 10. Nf3 {[%clk 01:07:16]} {[%emt 00:03:44]} Bg4 {[%clk 01:00:21]} 11.
h3 {[%clk 00:55:07]} {[%emt 00:15:55]} Bd7 {[%clk 00:57:47]} 12. h4 {[%clk
00:27:06]} {[%emt 00:52:38]} h6 {[%clk 00:29:21]} 13. Bd3 {[%clk 00:18:14]}
{[%emt 00:17:15]} Rae8 {[%clk 00:25:27]} 14. Bf5 {[%clk 00:15:13]} {[%emt
00:07:54]} Bxf5 {[%clk 00:24:06]} 15. Qxf5 {[%clk 00:15:35]} {[%emt 00:01:59]}
Na5 {[%clk 00:21:08]} 16. h5 {[%clk 00:13:59]} {[%emt 00:05:34]} Nc4 {[%clk
00:19:58]} 17. Bc1 {[%clk 00:14:15]} {[%emt 00:01:54]} c5 {[%clk 00:18:45]} 18.
Kf1 {[%clk 00:12:09]} {[%emt 00:04:19]} cxd4 {[%clk 00:07:30]} 19. cxd4 {[%clk
00:12:14]} {[%emt 00:12:11]} exd4 {[%clk 00:07:47]} {[%emt 00:00:12]} 20. Qd5
{[%clk 00:10:33]} {[%emt 00:02:10]} Rc8 {[%clk 00:06:51]} {[%emt 00:01:27]} 21.
exd4 {[%clk 00:09:03]} {[%emt 00:02:01]} Rfd8 {[%clk 00:04:52]} {[%emt
00:02:29]} 22. Qf5 {[%clk 00:09:07]} {[%emt 00:00:25]} Bxa3 {[%clk 00:04:09]}
{[%emt 00:01:13]} 23. Bf4 {[%clk 00:07:52]} {[%emt 00:01:45]} a6 {[%clk
00:01:44]} {[%emt 00:02:56]} 24. Rh4 {[%clk 00:06:40]} {[%emt 00:01:40]} Qd7
{[%clk 00:01:29]} {[%emt 00:00:46]} 25. Qxd7 {[%clk 00:04:11]} {[%emt
00:03:00]} Rxd7 {[%clk 00:01:56]} {[%emt 00:00:02]} 26. Rg4 {[%clk 00:04:31]}
{[%emt 00:00:10]} Kh7 {[%clk 00:02:03]} {[%emt 00:00:22]} 27. Nh4 {[%clk
00:02:55]} {[%emt 00:02:08]} Rd5 {[%clk 00:01:35]} {[%emt 00:00:57]} 28. Be5
{[%clk 00:02:41]} {[%emt 00:00:45]} Bf8 {[%clk 00:00:51]} {[%emt 00:01:14]} 29.
Re1 {[%clk 00:01:39]} {[%emt 00:01:31]} Re8 {[%clk 00:00:42]} {[%emt 00:00:39]}
30. Nf3 {[%clk 00:01:20]} {[%emt 00:00:48]} f6 {[%clk 00:00:49]} {[%emt
00:00:24]} 31. Bg3 {[%clk 00:01:36]} {[%emt 00:00:14]} Rxe1+ {[%clk 00:01:11]}
{[%emt 00:00:08]} 32. Kxe1 {[%clk 00:02:01]} {[%emt 00:00:05]} Rxh5 {[%clk
00:01:25]} {[%emt 00:00:16]} 33. Re4 {[%clk 00:02:24]} {[%emt 00:00:06]} Rd5
{[%clk 00:01:34]} {[%emt 00:00:22]} 34. Re8 {[%clk 00:02:46]} {[%emt 00:00:08]}
Kg8 {[%clk 00:01:04]} {[%emt 00:01:00]} 35. Ke2 {[%clk 00:03:05]} {[%emt
00:00:11]} Kf7 {[%clk 00:01:16]} {[%emt 00:00:18]} 36. Rc8 {[%clk 00:03:00]}
{[%emt 00:00:35]} Nb6 {[%clk 00:01:20]} {[%emt 00:00:26]} 37. Rb8 {[%clk
00:03:13]} {[%emt 00:00:17]} Rd7 {[%clk 00:01:45]} {[%emt 00:00:05]} 38. Nd2
{[%clk 00:02:09]} {[%emt 00:01:34]} Nd5 {[%clk 00:01:02]} {[%emt 00:01:13]} 39.
Nc4 {[%clk 00:02:22]} {[%emt 00:00:16]} Be7 {[%clk 00:00:34]} {[%emt 00:00:59]}
40. Ne3 {[%clk 00:00:52]} {[%emt 00:02:00]} Nb4 {[%clk 00:00:37]} {[%emt
00:00:28]} 41. d5 {[%clk 00:28:04]} {[%emt 00:03:17]} b5 {[%clk 00:26:38]}
{[%emt 00:04:29]} 42. Ra8 {[%clk 00:26:42]} {[%emt 00:01:52]} Bc5 {[%clk
00:21:39]} {[%emt 00:05:28]} 43. d6 {[%clk 00:27:03]} {[%emt 00:00:09]} g6
{[%clk 00:21:08]} {[%emt 00:01:02]} 44. Rh8 {[%clk 00:26:12]} {[%emt 00:01:21]}
h5 {[%clk 00:17:11]} {[%emt 00:04:26]} 45. Rh7+ {[%clk 00:22:41]} {[%emt
00:04:02]} Ke6 {[%clk 00:17:36]} {[%emt 00:00:05]} 46. Rh6 {[%clk 00:23:06]}
{[%emt 00:00:05]} Rg7 {[%clk 00:17:26]} {[%emt 00:00:38]} 47. f4 {[%clk
00:21:52]} {[%emt 00:01:45]} f5 {[%clk 00:16:57]} {[%emt 00:00:59]} 48. Be1
{[%clk 00:19:13]} {[%emt 00:03:09]} Bxe3 {[%clk 00:16:24]} {[%emt 00:01:04]}
0-1

[Event "Sverigemastarklassen 2025"]
[Site "Uppsala, Sweden"]
[Date "2025.06.30"]
[Round "3.1"]
[White "Sorensen, Hampus"]
[Black "Galperin, Platon"]
[Result "1/2-1/2"]
[TimeControl "90 min for 40 move + 30 min with an increment of 30 sec starting move 1"]
[WhiteTitle "IM"]
[BlackTitle "GM"]
[WhiteFideId "8703884"]
[BlackFideId "14165414"]
[WhiteElo "2432"]
[BlackElo "2500"]

1. d4 {[%clk 01:30:41]} {[%emt 00:00:18]} Nf6 {[%clk 01:30:54]} {[%emt
00:00:06]} 2. c4 {[%clk 01:30:34]} {[%emt 00:00:38]} e6 {[%clk 01:31:20]}
{[%emt 00:00:04]} 3. Nc3 {[%clk 01:29:26]} {[%emt 00:01:37]} Bb4 {[%clk
01:31:45]} {[%emt 00:00:06]} 4. Qc2 {[%clk 01:28:26]} {[%emt 00:01:31]} O-O
{[%clk 01:32:05]} {[%emt 00:00:09]} 5. Nf3 {[%clk 01:28:34]} {[%emt 00:00:22]}
d6 {[%clk 01:29:44]} {[%emt 00:02:51]} 6. a3 {[%clk 01:22:04]} {[%emt
00:06:59]} Bxc3+ {[%clk 01:30:03]} {[%emt 00:00:11]} 7. Qxc3 {[%clk 01:22:29]}
{[%emt 00:00:05]} Re8 {[%clk 01:29:29]} {[%emt 00:01:03]} 8. g3 {[%clk
01:14:36]} {[%emt 00:08:24]} e5 {[%clk 01:26:28]} {[%emt 00:03:31]} 9. Bg2
{[%clk 01:09:54]} {[%emt 00:05:12]} e4 {[%clk 01:26:12]} {[%emt 00:00:46]} 10.
Nd2 {[%clk 01:09:52]} {[%emt 00:00:32]} c6 {[%clk 01:26:32]} {[%emt 00:00:09]}
11. Nf1 {[%clk 01:08:20]} {[%emt 00:02:02]} d5 {[%clk 01:25:31]} {[%emt
00:01:31]} 12. c5 {[%clk 01:00:54]} {[%emt 00:07:58]} Nbd7 {[%clk 01:23:01]}
{[%emt 00:03:00]} 13. Ne3 {[%clk 00:54:41]} {[%emt 00:06:43]} Nf8 {[%clk
01:22:22]} {[%emt 00:01:08]} 14. O-O {[%clk 00:54:20]} {[%emt 00:00:51]} Be6
{[%clk 01:22:17]} {[%emt 00:00:35]} 15. f4 {[%clk 00:54:02]} {[%emt 00:00:49]}
exf3 {[%clk 01:22:24]} {[%emt 00:00:22]} 16. exf3 {[%clk 00:54:27]} {[%emt
00:00:06]} Qd7 {[%clk 01:22:13]} {[%emt 00:00:41]} 17. Bd2 {[%clk 00:48:52]}
{[%emt 00:06:05]} Ng6 {[%clk 01:21:03]} {[%emt 00:01:40]} 18. Rfe1 {[%clk
00:47:48]} {[%emt 00:01:34]} h5 {[%clk 01:21:08]} {[%emt 00:00:25]} 19. Bf1
{[%clk 00:44:21]} {[%emt 00:03:56]} h4 {[%clk 01:19:05]} {[%emt 00:02:34]} 20.
Ng2 {[%clk 00:37:27]} {[%emt 00:07:24]} Bh3 {[%clk 01:02:17]} {[%emt 00:17:18]}
21. Bd3 {[%clk 00:30:59]} {[%emt 00:06:58]} hxg3 {[%clk 01:01:12]} {[%emt
00:01:34]} 22. hxg3 {[%clk 00:31:12]} {[%emt 00:00:17]} Nh5 {[%clk 01:01:33]}
{[%emt 00:00:09]} 23. g4 {[%clk 00:27:20]} {[%emt 00:04:23]} Qc7 {[%clk
00:54:19]} {[%emt 00:07:44]} 24. Rxe8+ {[%clk 00:18:37]} {[%emt 00:09:14]} Rxe8
{[%clk 00:54:36]} {[%emt 00:00:12]} 25. Re1 {[%clk 00:19:04]} {[%emt 00:00:03]}
Rxe1+ {[%clk 00:52:42]} {[%emt 00:02:24]} 26. Bxe1 {[%clk 00:19:32]} {[%emt
00:00:02]} Bxg2 {[%clk 00:52:10]} {[%emt 00:01:01]} 27. Bxg6 {[%clk 00:11:54]}
{[%emt 00:08:09]} Nf4 {[%clk 00:52:29]} {[%emt 00:00:11]} 28. Qe3 {[%clk
00:12:18]} {[%emt 00:00:06]} fxg6 {[%clk 00:44:04]} {[%emt 00:08:53]} 29. Bg3
{[%clk 00:12:18]} {[%emt 00:00:31]} Ne2+ {[%clk 00:40:18]} {[%emt 00:04:15]} 30.
Qxe2 {[%clk 00:12:43]} {[%emt 00:00:06]} Qxg3 {[%clk 00:40:43]} {[%emt
00:00:04]} 31. Qxg2 {[%clk 00:13:07]} {[%emt 00:00:06]} Qe1+ {[%clk 00:39:39]}
{[%emt 00:01:33]} 32. Qf1 {[%clk 00:13:05]} {[%emt 00:00:34]} Qe3+ {[%clk
00:39:48]} {[%emt 00:00:21]} 33. Qf2 {[%clk 00:13:31]} {[%emt 00:00:04]} Qd3
{[%clk 00:40:11]} {[%emt 00:00:05]} 34. Kg2 {[%clk 00:12:00]} {[%emt 00:02:02]}
b6 {[%clk 00:38:51]} {[%emt 00:01:50]} 35. cxb6 {[%clk 00:08:14]} {[%emt
00:04:17]} axb6 {[%clk 00:39:14]} {[%emt 00:00:07]} 36. Qh4 {[%clk 00:07:56]}
{[%emt 00:00:47]} Qd2+ {[%clk 00:38:19]} {[%emt 00:01:25]} 37. Qf2 {[%clk
00:07:38]} {[%emt 00:00:47]} Qd3 {[%clk 00:38:44]} {[%emt 00:00:06]} 38. Qh4
{[%clk 00:07:58]} {[%emt 00:00:10]} g5 {[%clk 00:32:48]} {[%emt 00:06:27]} 39.
Qe1 {[%clk 00:06:33]} {[%emt 00:01:54]} Qxd4 {[%clk 00:29:19]} {[%emt
00:03:59]} 40. Qe8+ {[%clk 00:06:55]} {[%emt 00:00:07]} Kh7 {[%clk 00:29:46]}
{[%emt 00:00:04]} 1/2-1/2